Cogmind - Beta 14 @@@ ROGUE MODE // 2024.11.12 @ 17:19:53 Player: Shimmyarah Result: Smashed by cave-in Performance ------------- Evolutions (0) 0 Regions Visited (1) 200 Robots Destroyed (35) 175 Value Destroyed (523) 523 Prototype IDs (0) 0 Alien Tech Used (0) 0 Bonus (0) 0 TOTAL SCORE: 898 Bonus ------- None Cogmind --------- Core Integrity 0/250 Matter 300/300 Energy 246/250 System Corruption 1% Temperature Cool (20) Movement Rolling (110) Ox2 Location -10/Materials Parts ------- > --- POWER (1) -------- Ion Engine > --- PROPULSION (2) --- Wheel Wheel > --- UTILITY (2) ------ High-capacity Storage Unit Structural Scanner > --- WEAPON (2) ------- Medium Laser Mining Laser > --- INVENTORY (20) --- Ion Engine High-capacity Matter Pod (200) Sensor Array Targeting Computer Propulsion Shielding Tractor Beam Light Cannon Grenade Launcher Grenade Launcher Grenade Launcher Peak State ------------ > --- POWER ------------ Ion Engine > --- PROPULSION ------- Wheel Wheel > --- UTILITY ---------- Medium Storage Unit Improved Terrain Scanner > --- WEAPON ----------- Medium Laser Assault Rifle > --- INVENTORY -------- Light Ion Engine Wheel Wheel Wheel Small Matter Pod High-capacity Matter Pod Seismic Detector Propulsion Shielding Small Laser Mining Laser [Rating: 10] Favorites ----------- Power Ion Engine Engine Ion Engine Propulsion Wheel Wheel Wheel Utility Medium Storage Unit Device Structural Scanner Storage Medium Storage Unit Processor Transport Network Coupler Weapon Medium Laser Energy Gun Medium Laser Ballistic Gun Assault Rifle Ballistic Cannon Light Cannon Special Weapon Mining Laser Build | -11 -10 ------- Run | Yrd Mat Slots Evolved . | . . Power . | . . Propulsion . | . . Utility . | . . Weapon . | . . Parts Attached 34 | 11 23 Power 2 | 1 1 Engine 2 | 1 1 Core . | . . Reactor . | . . Propulsion 9 | 5 4 Treads . | . . Leg . | . . Wheel 9 | 5 4 Hover . | . . Flight . | . . Utility 8 | 2 6 Device 3 | 1 2 Storage 4 | 1 3 Processor 1 | . 1 Hackware . | . . Protection . | . . Artifact . | . . Weapon 15 | 3 12 Energy Gun 2 | 2 . Energy Cannon . | . . Ballistic Gun 2 | 1 1 Ballistic Cannon 5 | . 5 Launcher . | . . Special Weapon 6 | . 6 Impact Weapon . | . . Slashing Weapon . | . . Piercing Weapon . | . . Special Melee Weapon . | . . Unidentified Prototypes . | . . Parts Lost 4 | . 4 Power . | . . Propulsion 2 | . 2 Utility 1 | . 1 Weapon 1 | . 1 Highest Loss Streak 2 | . 2 To Critical Strikes . | . . Average Slot Usage (%) 99 | . 99 Engine 14 | . 14 Wheel 27 | . 27 Device 13 | . 13 Storage 14 | . 14 Energy Gun 14 | . 14 Ballistic Gun 2 | . 2 Ballistic Cannon 8 | . 8 Special Weapon 2 | . 2 Peak Build Rating 10 | 9 10 Average Rating 7 | 6 7 On Entrance 4 | . 9 Naked Turns . | . . Heaviest Build 51 | 15 51 Greatest Support 32 | 32 20 Greatest Overweight (x) 2 | . 2 Average Overweight (x) . | . . Largest Inventory Capacity 20 | 8 20 Average Capacity 11 | 7 11 Most Carried 10 | 8 10 Average Carried 9 | 5 9 Final Capacity 20 | 8 20 Final Carried 10 | 8 10 Class Distribution -------------------- 93% | Mutant 6% | Scavenger-Mutant Dominant Class ---------------- Mutant | -10/Materials Resources | -11 -10 ----------- Run | Yrd Mat Matter Collected 1026 | 429 597 Remotely . | . . Salvage Created 1176 | 275 901 Parts 72 | 22 50 Haulers Intercepted 2 | . 2 Recyclers Shooed 3 | . 3 Parts Field Recycled . | . . Retrieved Matter . | . . Parts Self-Destructed . | . . Prevented . | . . Kills | -11 -10 ------- Run | Yrd Mat Combat Hostiles Destroyed 15 | . 15 Guns 9 | . 9 Cannons 6 | . 6 Classes Destroyed 8 | 3 5 Worker 3 | 2 1 Tunneler 7 | 7 . Hauler 2 | . 2 Recycler 5 | 1 4 Operator 1 | . 1 Watcher 2 | . 2 Swarmer 6 | . 6 Grunt 9 | . 9 Best Kill Streak 7 | 7 4 Combat Bots Only 3 | . 3 Max Kills in Single Turn 2 | 1 2 Gunslinging 1 | . 1 Exploded . | . . Melee . | . . Uniques/NPCs Destroyed . | . . Combat | -11 -10 -------- Run | Yrd Mat Hostile Shots Fired 66 | . 66 Missed 16 | . 16 Damage Taken 828 | . 828 Core 257 | . 257 Absorbed by Shields . | . . Core Remaining (%) 100 | 100 . Volleys Fired 106 | 23 83 Largest 2 | 2 2 Hottest 100 | 70 100 Shots Fired 182 | 46 136 Gun 123 | 46 77 Cannon 35 | . 35 Launcher . | . . Special 24 | . 24 Kinetic 77 | 23 54 Thermal 105 | 23 82 Explosive . | . . Electromagnetic . | . . Robot Hit Streak 10 | 5 10 Robot Miss Streak 5 | 3 5 Penetration Max . | . . Secondary Targets 3 | . 3 Max Gunslinging Chain 1 | . 1 Shots Hit Robots 89 | 25 64 Core Hits 49 | 11 38 Critical Kills 1 | . 1 Critical Parts Destroyed . | . . Critical Strikes 4 | . 4 Burn 3 | . 3 Destroy 1 | . 1 Melee Attacks . | . . Impact . | . . Slashing . | . . Piercing . | . . Sneak Attacks . | . . Combat Hostiles . | . . Follow-up Attacks . | . . Damage Inflicted 1258 | 309 949 Guns 858 | 309 549 Cannons 400 | . 400 Explosions . | . . Melee . | . . Ramming . | . . Kinetic 654 | 153 501 Thermal 604 | 156 448 Explosive . | . . Electromagnetic . | . . Impact . | . . Slashing . | . . Piercing . | . . Highest Corruption 1 | . 1 Average Corruption 1 | . 1 Corruption Purged . | . . Corruption Blocked . | . . Effects 5 | . 5 Message Errors 2 | . 2 Matter Fused 1 | . 1 Energy Discharges 2 | . 2 Overload Shots . | . . Overflow Damage . | . . Projectiles . | . . Explosions . | . . Melee . | . . Knockbacks 4 | . 4 Impact . | . . Kinetic 4 | . 4 Secondary . | . . Self-Inflicted Damage . | . . Shots . | . . Rammed . | . . Targets Rammed . | . . Kicked . | . . Crushed . | . . Highest Temperature 204 | 9 204 Average Temperature 38 | 6 39 Received Heat Transfer 153 | . 153 Siege Activations . | . . Robots Corrupted . | . . Combat Hostiles . | . . Parts Fried . | . . Impact Corruptions . | . . Robots Melted . | . . Combat Hostiles . | . . Parts Melted 3 | . 3 Heat Transferred 1916 | 362 1554 Parts Sabotaged . | . . Parts Stolen . | . . Parts Stripped . | . . Power Chain Reactions . | . . Alert | -11 -10 ------- Run | Yrd Mat Peak Influence 286 | 50 286 Initial 32 | . 32 Average 97 | 23 105 Maximum Alert Level 1 | . 1 Low Security (%) 90 | 100 89 Level 1 9 | . 10 Level 2 . | . . Level 3 . | . . Level 4 . | . . Level 5 . | . . High Security . | . . Max Security . | . . Squads Dispatched 3 | . 3 Investigation 1 | . 1 Extermination . | . . Reinforcement 2 | . 2 Assault . | . . Garrison . | . . Intercept . | . . Searches Triggered . | . . Construction Impeded . | . . Haulers Reinforced . | . . Active Scanning Responses . | . . Cargo Convoy Interrupts . | . . Stealth | -11 -10 --------- Run | Yrd Mat Distress Signals 1 | . 1 Communications Jammed . | . . Distress Signals . | . . Times Spotted 27 | . 27 Peak Tracking Total 4 | . 4 Tactical Retreats 3 | . 3 Traps | -11 -10 ------- Run | Yrd Mat Traps Triggered . | . . Indirectly . | . . Trap Hack Attempts . | . . Triggered . | . . Disarmed . | . . Reprogrammed . | . . Reused . | . . Traps Extracted . | . . Installed . | . . Triggered . | . . Machines | -11 -10 ---------- Run | Yrd Mat Machines Disabled 1 | . 1 Max in Single Turn 1 | . 1 Machines Repaired . | . . Machines Dismantled . | . . Machines Sabotaged . | . . Overloaded Fab Kills . | . . Hacking | -11 -10 --------- Run | Yrd Mat Machines Accessed 7 | . 7 Terminals 6 | . 6 Fabricators . | . . Repair Stations . | . . Recycling Units 1 | . 1 Scanalyzers . | . . Garrison Access . | . . Total Hacks 18 | . 18 Successful 13 | . 13 Failed 4 | . 4 Catastrophic . | . . Database Lockouts 1 | . 1 Manual 18 | . 18 Terminals 17 | . 17 Fabricators . | . . Repair Stations . | . . Recycling Units 1 | . 1 Scanalyzers . | . . Garrison Access . | . . Terminal Hacks 1 | . 1 Part Schematic 1 | . 1 Fabricator Hacks . | . . Repair Station Hacks . | . . Recycling Unit Hacks . | . . Scanalyzer . | . . Garrison Access Hacks . | . . Unauthorized Hacks 12 | . 12 Terminals 11 | . 11 Botnet 5 | . 5 Skim 6 | . 6 Fabricators . | . . Repair Stations . | . . Recycling Units 1 | . 1 Mask 1 | . 1 Scanalyzers . | . . Garrison Access . | . . Data Cores Recovered . | . . Used . | . . Hacking Detections 5 | . 5 Full Trace Events 1 | . 1 Feedback Events 1 | . 1 Corruption 1 | . 1 Feedback Blocked . | . . Robot Schematics Acquired . | . . Robots Built . | . . Authchips . | . . Time . | . . Total Robot Build Rating . | . . Part Schematics Acquired 1 | . 1 Parts Built . | . . Authchips . | . . Time . | . . Total Part Build Rating . | . . Parts Repaired . | . . Time . | . . Parts Recycled . | . . Recycled Matter . | . . Retrieved Matter . | . . Retrieved Components . | . . Parts Scanalyzed . | . . Part Schematics Acquired . | . . Parts Damaged . | . . Bothacking | -11 -10 ------------ Run | Yrd Mat Used RIF Installer . | . . Robots Hacked . | . . Non-combat . | . . Combat . | . . Robot Hacks Applied . | . . Relay Couplers Released . | . . Fabnet Peak Effective % . | . . Robots Rewired . | . . Allies Hacked . | . . Hacks Repelled . | . . Allies | -11 -10 -------- Run | Yrd Mat Total Allies . | . . Largest Group . | . . Highest-Rated Group . | . . Highest-Rated Ally . | . . Total Orders . | . . Ally Attacks . | . . Total Damage . | . . Kills . | . . Allies Corrupted . | . . Allies Melted . | . . Intel | -11 -10 ------- Run | Yrd Mat Robot Analysis Total . | . . Derelict Logs Recovered . | . . Drone Launches . | . . Drone Recoveries . | . . Exploration | -11 -10 ------------- Run | Yrd Mat Turns Passed 2359 | 233 2126 Spaces Moved 1649 | 156 1493 Core 6 | 6 . Treads . | . . Legs . | . . Wheels 1643 | 150 1493 Hover . | . . Flight . | . . Fastest Speed 50 | 50 80 Average Speed 91 | 86 91 Slowest Speed 110 | 100 110 Overloaded Moves . | . . Propulsion Burnouts . | . . Robots Hopped . | . . Cave-ins Triggered 1 | . 1 Exploration Rate (%) 52 | 7 98 Regions Visited 1 Branch Regions . Pre-discovered Areas 1 | . 1 Known Exits Taken . | . . Unknown Exits Taken 1 | 1 . Scrap Searched . | . . Spaces Dug 22 | . 22 Terrain Destroyed 24 | . 24 Melee . | . . Projectile 24 | . 24 AOE . | . . Terrain Rammed . | . . Walls Destroyed . | . . Machines Disabled . | . . Actions | -11 -10 --------- Run | Yrd Mat Total 2279 | 210 2069 Wait 443 | . 443 Move 1648 | 155 1493 Hop . | . . Pick Up 32 | 17 15 Fast Attach 2 | 1 1 Attach 10 | 6 4 Detach . | . . Swap 22 | 4 18 Drop 16 | 4 12 Fire 106 | 23 83 Melee . | . . Ram . | . . Kick . | . . Crush . | . . Escape Stasis . | . . Rewire . | . . Trap . | . . Miscellaneous . | . . Route ------- -11/Scrapyard -10/Materials (discovered 4 exits: [*Mat x3] / [*Min]) History --------- Turn | Location | Event 11 | -11/Scrapyard | Discovered new exit (range 13) 234 | -11/Scrapyard | Entered Materials 321 | -10/Materials | Build established: Mutant 528 | -10/Materials | Discovered new exit (range 16) 877 | -10/Materials | Discovered new exit (range 11) 950 | -10/Materials | Discovered new exit (range 8) 1199 | -10/Materials | Discovered new exit (range 3) 1325 | -10/Materials | Central database locked down 1396 | -10/Materials | Learned Storage garrison access intel 1459 | -10/Materials | Learned location of Mines (-10) 1511 | -10/Materials | Learned location of 2 exits from Subcaves 1552 | -10/Materials | Learned location of 3 exits from Materials 1605 | -10/Materials | Learned 2 Storage zone layouts 1637 | -10/Materials | Learned location of 1 exit from Storage 2361 | -10/Materials | Crushed by falling debris 2361 | -10/Materials | Smashed by cave-in Last Messages --------------- 02174_ Acquired 41 matter. 02176_ K-01 Serf cleans the Nuclear Reactor. 02177_ Acquired 3 matter. 02180_ R-06 Scavenger destroyed. 02182_ K-01 Serf collects debris. 02182_ U-05 Engineer builds a Wall. 02183_ Acquired 1 matter. 02184_ Acquired 15 matter. 02186_ K-01 Serf cleans the Repair Station. 02190_ K-01 Serf collects debris. 02238_ R-06 Scavenger collects Sml. Storage Unit. 02317_ U-05 Engineer builds a Wall. 02321_ K-01 Serf cleans the Nuclear Reactor. 02336_ Acquired 3 matter. 02337_ Acquired 7 matter. 02357_ U-05 Engineer builds a Wall. 02361_ The unstable cave ceiling collapses. 02361_ Crushed by falling debris. Map ----- +----------------------------------------------------+ | ########+################ * ^+ """ """ # """ # | | ################ # """ """ # """ # | | ##????????????## # """ """ # """ ## | | ##????????????### ## """ """ " """ ## | | ##????????????### ## # ## | | ##??????????????# ###########"######## | | ##??????????????# ########## ######### | | ########???????## ###########"###????# | | +########## ##??????# """# ##????# | | ##??????# "# ##????# | | ^ T ##??????# !"# """ """ ##????# | | ##??????# < ""# """ """ ##????# | | ######### #???????# !"# """ """ ##?#### | | ########## ##???????# "# ##?#### | | ##???????# #######??# """# = ##### | | ########?# ########### #### ##### | | ########?# ## # #######+####""#### | | ## ##?# ## "" + ##"##### | | ## ##?# ## T" # # # | | # #### ## %"" # # # | | # %#### ## % ######+### # """ + | | T # **+% ## """ ## = [# # """ # | | #= % # ## """ ## # # """ # | | # # ## """ ## %# # # | | ### # ## ## = # ######## # | | ### #% ##########@#####+### # | | ######## ##??????##;## % # | | * %# ?????? ### % # | | ######### # ??????? ### """%%# | | ######### # ?????? ?## "R" # | | # # + ?## """ " " # | | + # ##########?## """ # | | #"" + ##########?## ![ """ # | | #"T # ##?????????## [| | | #"" # ##?????????## | | # # ##?????????## # | | ######## ############# #############+### | | ######## ############# ########## ^ | | ######## %* ##??????## | | #########= = ##??????## """ | | % ##??????## """"" | | ################## ##??????## """"" | | ########+#################### < ##??????## """"" | | """ # ##?????????????## ##??????## """ | | """ # """ ##?????????????########??????## | | """ # """ ##?????????????########??????## | | #! """ ##???????????????????????????######### | | #! ##???????????????????????????######### | | ##############???????????????????????????????????? | | | +----------------------------------------------------+ Best States ------------- Heat Dissipation 25 Energy Generation 10 Energy Capacity 250 Matter Stores 300 Matter Capacity 300 Sight Range 16 Terrain Scan Range 16 Terrain Scan Density 10 Evasion (%) 44 Item Schematics ----------------- Seismic Detector | -10/Materials | Hacked Robot Schematics ------------------ None Fabricated ------------ Nothing Alien Tech Used ----------------- None Achievements -------------- None Challenges ------------ None Game ------ Seed LinkedMappingNanoactuators Manual? 0 Play Time 00:25:51 Cumulative 39.0 hours Start 2024.11.12 @ 16:55:00 End 2024.11.12 @ 17:19:53 Sessions 1 Manual Loads 0 Difficulty Rogue Special Mode None Game No. 78 Rogue 78 Adventurer 0 Explorer 0 Win Type - Total 0 Types 0/0/0/0/0/0/0/0/0 Lore% 15 Gallery% 26 Achievement% 24 Wizard Run 0 Options --------- Layout 1 ASCII 0 Keyboard 0 Movement Arrows Keybinds 0 Fullscreen 1 Font 24/Smallcaps Map View 50x40 Zoom Use 0% Tactical HUD 1 Map Filters NONE Filters NONE Steam 1 RUN: 76304616-b673-4e52-ad13-bf3cfdc9add3